[Event "*** Titled Tuesday Blitz"]
[Site "Chess.com"]
[Date "2020.04.28"]
[Round "2"]
[White "Maybe00"]
[Black "harvsp123"]
[Result "1/2-1/2"]
[WhiteElo "2777"]
[BlackElo "2527"]
[TimeControl "180+1"]
[EndTime "10:20:41 PDT"]
[Termination "Game drawn by repetition"]

1. d4 {[%clk 0:03:00.9]} 1... Nf6 {[%clk 0:02:56.3]} 2. c4 {[%clk 0:03:00.5]}
2... g6 {[%clk 0:02:56.4]} 3. f3 {[%clk 0:03:00.3]} 3... c5 {[%clk 0:02:56]} 4.
d5 {[%clk 0:03:00.4]} 4... e6 {[%clk 0:02:53.9]} 5. Nc3 {[%clk 0:03:00.3]} 5...
exd5 {[%clk 0:02:53.9]} 6. cxd5 {[%clk 0:03:01.2]} 6... d6 {[%clk 0:02:53.7]} 7.
e4 {[%clk 0:03:01.6]} 7... Bg7 {[%clk 0:02:54.1]} 8. Nge2 {[%clk 0:03:02]} 8...
O-O {[%clk 0:02:54.5]} 9. Ng3 {[%clk 0:03:02.3]} 9... a6 {[%clk 0:02:33.3]} 10.
a4 {[%clk 0:03:01.1]} 10... Nbd7 {[%clk 0:02:31.4]} 11. Be2 {[%clk 0:03:00.9]}
11... Ne8 {[%clk 0:02:28.6]} 12. O-O {[%clk 0:02:57.1]} 12... Rb8 {[%clk
0:02:20.9]} 13. f4 {[%clk 0:02:55.8]} 13... Nc7 {[%clk 0:02:16.8]} 14. Kh1
{[%clk 0:02:55.7]} 14... b5 {[%clk 0:02:06.9]} 15. e5 {[%clk 0:02:56.1]} 15...
dxe5 {[%clk 0:01:29.7]} 16. f5 {[%clk 0:02:32.6]} 16... bxa4 {[%clk 0:01:15.1]}
17. Nce4 {[%clk 0:01:35.4]} 17... Rb4 {[%clk 0:00:44.9]} 18. fxg6 {[%clk
0:01:26.8]} 18... hxg6 {[%clk 0:00:43.7]} 19. Rxa4 {[%clk 0:01:11.5]} 19... Rxa4
{[%clk 0:00:17.2]} 20. Qxa4 {[%clk 0:01:12.4]} 20... Nxd5 {[%clk 0:00:17.5]} 21.
Bxa6 {[%clk 0:01:10.5]} 21... N7b6 {[%clk 0:00:17.2]} 22. Qa5 {[%clk 0:01:04.4]}
22... Bxa6 {[%clk 0:00:17.5]} 23. Qxa6 {[%clk 0:01:05.3]} 23... Qa8 {[%clk
0:00:17]} 24. Qb5 {[%clk 0:00:56]} 24... c4 {[%clk 0:00:13.4]} 25. Bg5 {[%clk
0:00:53.9]} 25... Qa4 {[%clk 0:00:12.6]} 26. Qc5 {[%clk 0:00:47.4]} 26... Rc8
{[%clk 0:00:11.4]} 27. Qd6 {[%clk 0:00:44.5]} 27... Qc6 {[%clk 0:00:12]} 28. Qa3
{[%clk 0:00:40.3]} 28... f5 {[%clk 0:00:12]} 29. Nc3 {[%clk 0:00:34.6]} 29...
Ra8 {[%clk 0:00:12.6]} 30. Nxd5 {[%clk 0:00:32.5]} 30... Nxd5 {[%clk 0:00:11.6]}
31. Qf3 {[%clk 0:00:29.3]} 31... e4 {[%clk 0:00:12.2]} 32. Qe2 {[%clk
0:00:29.3]} 32... c3 {[%clk 0:00:11.6]} 33. bxc3 {[%clk 0:00:29.2]} 33... Nxc3
{[%clk 0:00:12.5]} 34. Qe3 {[%clk 0:00:28.3]} 34... Ra2 {[%clk 0:00:12.9]} 35.
h4 {[%clk 0:00:25.3]} 35... Qc4 {[%clk 0:00:13.2]} 36. Rc1 {[%clk 0:00:21]}
36... Qd4 {[%clk 0:00:08.9]} 37. Qf4 {[%clk 0:00:18.3]} 37... Rb2 {[%clk
0:00:06.5]} 38. Nxf5 {[%clk 0:00:16.6]} 38... gxf5 {[%clk 0:00:05.9]} 39. Qxf5
{[%clk 0:00:17.5]} 39... Qd2 {[%clk 0:00:06.5]} 40. Bxd2 {[%clk 0:00:16.9]}
40... Rxd2 {[%clk 0:00:07.4]} 41. Qe6+ {[%clk 0:00:17.1]} 41... Kh8 {[%clk
0:00:06.6]} 42. Qe8+ {[%clk 0:00:17.4]} 42... Kh7 {[%clk 0:00:07.1]} 43. Qh5+
{[%clk 0:00:17.7]} 43... Kg8 {[%clk 0:00:08]} 44. Qe8+ {[%clk 0:00:16.4]} 44...
Kh7 {[%clk 0:00:08.9]} 45. Rxc3 {[%clk 0:00:16.7]} 45... Bxc3 {[%clk 0:00:08.5]}
46. Qxe4+ {[%clk 0:00:17]} 46... Kh8 {[%clk 0:00:09]} 47. Qe8+ {[%clk 0:00:16]}
47... Kh7 {[%clk 0:00:09]} 48. Qf7+ {[%clk 0:00:16]} 48... Bg7 {[%clk
0:00:09.1]} 49. Qf5+ {[%clk 0:00:15.9]} 49... Kg8 {[%clk 0:00:09.6]} 50. Qe6+
{[%clk 0:00:15.7]} 50... Kh7 {[%clk 0:00:09.9]} 51. g4 {[%clk 0:00:16.3]} 51...
Rd1+ {[%clk 0:00:09.8]} 52. Kg2 {[%clk 0:00:16.7]} 52... Rd2+ {[%clk 0:00:10.7]}
53. Kf3 {[%clk 0:00:17.1]} 53... Rd3+ {[%clk 0:00:11.3]} 54. Ke2 {[%clk
0:00:17.6]} 54... Rd4 {[%clk 0:00:12.2]} 55. h5 {[%clk 0:00:17.9]} 55... Rf4
{[%clk 0:00:12.2]} 56. Qg6+ {[%clk 0:00:17.4]} 56... Kh8 {[%clk 0:00:12.2]} 57.
h6 {[%clk 0:00:18]} 57... Bf8 {[%clk 0:00:12.1]} 58. h7 {[%clk 0:00:18.1]} 58...
Bg7 {[%clk 0:00:12.1]} 59. g5 {[%clk 0:00:17.8]} 59... Rf8 {[%clk 0:00:13]} 60.
Qh5 {[%clk 0:00:17.5]} 60... Rf5 {[%clk 0:00:12.7]} 61. Kd3 {[%clk 0:00:16.9]}
61... Rf8 {[%clk 0:00:13.6]} 62. Ke4 {[%clk 0:00:17.2]} 62... Rf1 {[%clk
0:00:13.6]} 63. Qg6 {[%clk 0:00:16]} 63... Rf8 {[%clk 0:00:14.5]} 64. Kd5 {[%clk
0:00:16.1]} 64... Rd8+ {[%clk 0:00:15]} 65. Ke6 {[%clk 0:00:16.5]} 65... Rf8
{[%clk 0:00:15.9]} 66. Ke7 {[%clk 0:00:16.8]} 66... Rf4 {[%clk 0:00:16.2]} 67.
Qh5 {[%clk 0:00:15.4]} 67... Rf8 {[%clk 0:00:16.6]} 68. g6 {[%clk 0:00:15.7]}
68... Rf4 {[%clk 0:00:16.9]} 69. Qd5 {[%clk 0:00:15.8]} 69... Rf8 {[%clk
0:00:17.3]} 70. Qd7 {[%clk 0:00:15.7]} 70... Bh6 {[%clk 0:00:17.4]} 71. Ke6
{[%clk 0:00:14.7]} 71... Bg7 {[%clk 0:00:17.9]} 72. Ke7 {[%clk 0:00:08.1]} 72...
Bh6 {[%clk 0:00:17.7]} 73. Qh3 {[%clk 0:00:08.7]} 73... Bg7 {[%clk 0:00:17.9]}
74. Qh5 {[%clk 0:00:09.4]} 74... Rb8 {[%clk 0:00:17.2]} 75. Ke6 {[%clk
0:00:09.3]} 75... Rf8 {[%clk 0:00:17.5]} 76. Kd7 {[%clk 0:00:09.4]} 76... Rf6
{[%clk 0:00:17.2]} 77. Ke7 {[%clk 0:00:06.5]} 77... Rf8 {[%clk 0:00:17.8]} 78.
Qb5 {[%clk 0:00:06.7]} 78... Bh6 {[%clk 0:00:16.8]} 79. Ke6 {[%clk 0:00:06.5]}
79... Bg7 {[%clk 0:00:17.3]} 80. Qd7 {[%clk 0:00:06.9]} 80... Bh6 {[%clk
0:00:17]} 81. Kd5 {[%clk 0:00:07.1]} 81... Bg7 {[%clk 0:00:17.5]} 82. Ke4 {[%clk
0:00:07.6]} 82... Bh6 {[%clk 0:00:17.5]} 83. Qh3 {[%clk 0:00:07.8]} 83... Bg7
{[%clk 0:00:17.8]} 84. Kd5 {[%clk 0:00:08.5]} 84... Rd8+ {[%clk 0:00:16.7]} 85.
Ke6 {[%clk 0:00:08.9]} 85... Re8+ {[%clk 0:00:17.2]} 86. Kf7 {[%clk 0:00:09.1]}
86... Rf8+ {[%clk 0:00:17.8]} 87. Ke7 {[%clk 0:00:09.6]} 87... Rb8 {[%clk
0:00:14.2]} 88. Qf5 {[%clk 0:00:09.8]} 88... Ra8 {[%clk 0:00:13.1]} 89. Qf3
{[%clk 0:00:09.2]} 89... Rb8 {[%clk 0:00:12.2]} 90. Qf5 {[%clk 0:00:08.9]} 90...
Ra8 {[%clk 0:00:12.3]} 91. Qf4 {[%clk 0:00:09.5]} 91... Rc8 {[%clk 0:00:12.2]}
92. Kd7 {[%clk 0:00:09.7]} 92... Ra8 {[%clk 0:00:12.1]} 93. Qe3 {[%clk
0:00:08.5]} 93... Rf8 {[%clk 0:00:12.3]} 94. Ke7 {[%clk 0:00:08.2]} 94... Rb8
{[%clk 0:00:12.1]} 95. Qf3 {[%clk 0:00:05.2]} 95... Rc8 {[%clk 0:00:12.3]} 96.
Kd7 {[%clk 0:00:05.4]} 96... Rf8 {[%clk 0:00:11.9]} 97. Qd5 {[%clk 0:00:05.4]}
97... Rb8 {[%clk 0:00:11.6]} 98. Ke7 {[%clk 0:00:05.4]} 98... Rf8 {[%clk
0:00:12.1]} 99. Qb5 {[%clk 0:00:03.6]} 99... Ra8 {[%clk 0:00:11.6]} 100. Qc6
{[%clk 0:00:03.8]} 100... Rf8 {[%clk 0:00:11.8]} 101. Qe6 {[%clk 0:00:04.2]}
101... Rb8 {[%clk 0:00:12]} 102. Qd5 {[%clk 0:00:03.9]} 102... Rf8 {[%clk
0:00:11.6]} 1/2-1/2

[Event "*** Titled Tuesday Blitz"]
[Site "Chess.com"]
[Date "2020.04.28"]
[Round "2"]
[White "MilanovicDan"]
[Black "GHANDEEVAM2003"]
[Result "1/2-1/2"]
[WhiteElo "2468"]
[BlackElo "2843"]
[TimeControl "180+1"]
[EndTime "10:20:50 PDT"]
[Termination "Game drawn by repetition"]

1. d4 {[%clk 0:03:00.9]} 1... d5 {[%clk 0:02:59.2]} 2. c4 {[%clk 0:03:00.7]}
2... e6 {[%clk 0:02:59.1]} 3. Nc3 {[%clk 0:03:00.2]} 3... c6 {[%clk 0:02:59]} 4.
e3 {[%clk 0:02:59.5]} 4... Nf6 {[%clk 0:02:58.5]} 5. Bd2 {[%clk 0:02:59.1]} 5...
Bd6 {[%clk 0:02:55.4]} 6. Rc1 {[%clk 0:02:58.1]} 6... O-O {[%clk 0:02:54.5]} 7.
cxd5 {[%clk 0:02:57]} 7... exd5 {[%clk 0:02:53.6]} 8. Bd3 {[%clk 0:02:56.9]}
8... Re8 {[%clk 0:02:51.3]} 9. Nge2 {[%clk 0:02:56.9]} 9... Ne4 {[%clk
0:02:48.9]} 10. O-O {[%clk 0:02:50.5]} 10... Nd7 {[%clk 0:02:46.6]} 11. Be1
{[%clk 0:02:42.5]} 11... Ndf6 {[%clk 0:02:44.5]} 12. f3 {[%clk 0:02:06.7]} 12...
Nxc3 {[%clk 0:02:16.8]} 13. Rxc3 {[%clk 0:02:06.6]} 13... Be6 {[%clk 0:02:04.3]}
14. Bh4 {[%clk 0:01:56.3]} 14... Be7 {[%clk 0:01:58.9]} 15. Bf2 {[%clk 0:01:52]}
15... Qa5 {[%clk 0:01:56.4]} 16. a3 {[%clk 0:01:49.8]} 16... Rad8 {[%clk
0:01:56.6]} 17. Kh1 {[%clk 0:01:48.9]} 17... a6 {[%clk 0:01:54.1]} 18. Bb1
{[%clk 0:01:36.3]} 18... Qb6 {[%clk 0:01:49.3]} 19. Qc2 {[%clk 0:01:31.5]} 19...
g6 {[%clk 0:01:49.3]} 20. g4 {[%clk 0:01:30.2]} 20... Qc7 {[%clk 0:01:45.9]} 21.
Nf4 {[%clk 0:01:27.7]} 21... Bd6 {[%clk 0:01:44.6]} 22. Bg3 {[%clk 0:01:24.3]}
22... Qe7 {[%clk 0:01:42.9]} 23. Rg1 {[%clk 0:01:17.3]} 23... Nd7 {[%clk
0:01:40.6]} 24. Nd3 {[%clk 0:01:10.4]} 24... Kh8 {[%clk 0:01:35.9]} 25. Qf2
{[%clk 0:01:01.5]} 25... f6 {[%clk 0:01:29.1]} 26. h4 {[%clk 0:00:59.1]} 26...
Bf7 {[%clk 0:01:26.9]} 27. Nf4 {[%clk 0:00:53.6]} 27... c5 {[%clk 0:01:24.7]}
28. Qh2 {[%clk 0:00:41.8]} 28... Nf8 {[%clk 0:01:06.1]} 29. h5 {[%clk
0:00:26.7]} 29... g5 {[%clk 0:01:04.3]} 30. Ng6+ {[%clk 0:00:20.4]} 30... Bxg6
{[%clk 0:01:04.7]} 31. hxg6 {[%clk 0:00:20]} 31... cxd4 {[%clk 0:00:52.7]} 32.
exd4 {[%clk 0:00:19.6]} 32... Bxg3 {[%clk 0:00:40.5]} 33. Rxg3 {[%clk
0:00:19.5]} 33... Rd7 {[%clk 0:00:40.9]} 34. Rc1 {[%clk 0:00:14.6]} 34... Qd6
{[%clk 0:00:36]} 35. Rh3 {[%clk 0:00:13.2]} 35... Qxh2+ {[%clk 0:00:36.9]} 36.
Rxh2 {[%clk 0:00:13.2]} 36... b5 {[%clk 0:00:25.9]} 37. Bf5 {[%clk 0:00:12.8]}
37... Rg7 {[%clk 0:00:24.1]} 38. gxh7 {[%clk 0:00:10.1]} 38... Nxh7 {[%clk
0:00:25]} 39. Bxh7 {[%clk 0:00:10.2]} 39... Rxh7 {[%clk 0:00:25.9]} 40. Rxh7+
{[%clk 0:00:10.5]} 40... Kxh7 {[%clk 0:00:26.8]} 41. Rc7+ {[%clk 0:00:10.9]}
41... Kg6 {[%clk 0:00:26.4]} 42. Rc2 {[%clk 0:00:10.4]} 42... Re1+ {[%clk
0:00:24.7]} 43. Kg2 {[%clk 0:00:10.7]} 43... Rd1 {[%clk 0:00:25.6]} 44. Kf2
{[%clk 0:00:10.9]} 44... Rxd4 {[%clk 0:00:25.8]} 45. Ke3 {[%clk 0:00:11.2]}
45... Rd1 {[%clk 0:00:20.4]} 46. Rc6 {[%clk 0:00:11]} 46... d4+ {[%clk
0:00:20.8]} 47. Ke2 {[%clk 0:00:10.9]} 47... Rb1 {[%clk 0:00:21.3]} 48. Rc2
{[%clk 0:00:06.3]} 48... Kf7 {[%clk 0:00:21.6]} 49. Kd3 {[%clk 0:00:02.8]} 49...
Rd1+ {[%clk 0:00:21.9]} 50. Ke4 {[%clk 0:00:03.1]} 50... d3 {[%clk 0:00:19.5]}
51. Rc7+ {[%clk 0:00:03.2]} 51... Ke6 {[%clk 0:00:15.7]} 52. Rc6+ {[%clk
0:00:03.7]} 52... Ke7 {[%clk 0:00:14.4]} 53. Rxa6 {[%clk 0:00:03.3]} 53... d2
{[%clk 0:00:11.2]} 54. Kd3 {[%clk 0:00:03.5]} 54... Rb1 {[%clk 0:00:11.2]} 55.
Ra7+ {[%clk 0:00:03.1]} 55... Ke6 {[%clk 0:00:11.1]} 56. Kxd2 {[%clk 0:00:03.7]}
56... Rxb2+ {[%clk 0:00:12]} 57. Ke3 {[%clk 0:00:03.9]} 57... Ke5 {[%clk
0:00:11.3]} 58. Re7+ {[%clk 0:00:03.3]} 58... Kd6 {[%clk 0:00:11.9]} 59. Rf7
{[%clk 0:00:03.7]} 59... Rb3+ {[%clk 0:00:11.3]} 60. Ke4 {[%clk 0:00:02.9]}
60... Ke6 {[%clk 0:00:12.2]} 61. Ra7 {[%clk 0:00:03.1]} 61... Rc3 {[%clk
0:00:10.9]} 62. Ra6+ {[%clk 0:00:03.6]} 62... Kf7 {[%clk 0:00:11.4]} 63. Ra7+
{[%clk 0:00:04]} 63... Kg6 {[%clk 0:00:11.4]} 64. Ra6 {[%clk 0:00:04.5]} 64...
Rc4+ {[%clk 0:00:11.4]} 65. Ke3 {[%clk 0:00:04.8]} 65... Rc3+ {[%clk 0:00:11.7]}
66. Ke4 {[%clk 0:00:05.1]} 66... Rb3 {[%clk 0:00:11.8]} 67. Ra7 {[%clk
0:00:04.2]} 67... Rb1 {[%clk 0:00:11]} 68. Ra6 {[%clk 0:00:03.9]} 68... Re1+
{[%clk 0:00:11.2]} 69. Kd3 {[%clk 0:00:04]} 69... Kf7 {[%clk 0:00:11.2]} 70. Kd4
{[%clk 0:00:04.2]} 70... Rc1 {[%clk 0:00:10.6]} 71. Ke3 {[%clk 0:00:04.1]} 71...
Rc3+ {[%clk 0:00:10.4]} 72. Ke4 {[%clk 0:00:04.1]} 72... Rb3 {[%clk 0:00:10.9]}
73. Ra7+ {[%clk 0:00:02.8]} 73... Kf8 {[%clk 0:00:10.7]} 74. Ra6 {[%clk
0:00:03.3]} 74... Ke7 {[%clk 0:00:10.9]} 75. Ra7+ {[%clk 0:00:03.5]} 75... Ke6
{[%clk 0:00:09.2]} 76. Ra6+ {[%clk 0:00:04.4]} 76... Kf7 {[%clk 0:00:09.7]} 77.
Ra7+ {[%clk 0:00:05]} 77... Kg6 {[%clk 0:00:10.3]} 78. Ra6 {[%clk 0:00:04.5]}
78... Rc3 {[%clk 0:00:08.7]} 79. Ra7 {[%clk 0:00:04.7]} 79... Rc5 {[%clk
0:00:08.1]} 80. Kd4 {[%clk 0:00:04.6]} 80... Rc4+ {[%clk 0:00:07.5]} 81. Ke3
{[%clk 0:00:05.1]} 81... Kh6 {[%clk 0:00:06.4]} 82. Rb7 {[%clk 0:00:04.5]} 82...
Rc3+ {[%clk 0:00:05.8]} 83. Ke4 {[%clk 0:00:04.8]} 83... Rb3 {[%clk 0:00:05.1]}
84. Ra7 {[%clk 0:00:05]} 84... Kg6 {[%clk 0:00:05.3]} 85. Ra6 {[%clk 0:00:04.4]}
85... Rb1 {[%clk 0:00:05.3]} 86. Ra7 {[%clk 0:00:04.1]} 86... Re1+ {[%clk
0:00:05.6]} 87. Kd3 {[%clk 0:00:04]} 87... Rd1+ {[%clk 0:00:05.7]} 88. Ke3
{[%clk 0:00:04.1]} 88... Rc1 {[%clk 0:00:06]} 89. Ke4 {[%clk 0:00:03.8]} 89...
Rc5 {[%clk 0:00:05.9]} 90. Ra6 {[%clk 0:00:03.9]} 90... Rc4+ {[%clk 0:00:05.7]}
91. Ke3 {[%clk 0:00:03.9]} 91... b4 {[%clk 0:00:05.8]} 92. axb4 {[%clk
0:00:03.3]} 92... Rxb4 {[%clk 0:00:06.7]} 93. Ra3 {[%clk 0:00:03.9]} 93... Rc4
{[%clk 0:00:07]} 94. Rd3 {[%clk 0:00:04.8]} 94... Rc7 {[%clk 0:00:07.4]} 95. Rb3
{[%clk 0:00:05.3]} 95... Re7+ {[%clk 0:00:07.9]} 96. Kf2 {[%clk 0:00:05.7]}
96... Kf7 {[%clk 0:00:08.8]} 97. Kg3 {[%clk 0:00:06.1]} 97... Re6 {[%clk
0:00:09.2]} 98. Rd3 {[%clk 0:00:06.6]} 98... Kg6 {[%clk 0:00:09.3]} 99. Rd2
{[%clk 0:00:07.1]} 99... Re5 {[%clk 0:00:09.8]} 100. Rd3 {[%clk 0:00:07.2]}
100... Re6 {[%clk 0:00:09.9]} 101. Rd4 {[%clk 0:00:07.5]} 101... Re5 {[%clk
0:00:10.2]} 102. Rd3 {[%clk 0:00:07.6]} 102... Re6 {[%clk 0:00:10.7]} 1/2-1/2

[Event "*** Titled Tuesday Blitz"]
[Site "Chess.com"]
[Date "2020.04.28"]
[Round "3"]
[White "IsaacWiebe"]
[Black "NFChess13"]
[Result "0-1"]
[WhiteElo "2180"]
[BlackElo "2390"]
[TimeControl "180+1"]
[EndTime "10:23:25 PDT"]
[Termination "NFChess13 won by resignation"]

1. d4 {[%clk 0:03:00.9]} 1... Nf6 {[%clk 0:02:56.8]} 2. c4 {[%clk 0:03:00.9]}
2... g6 {[%clk 0:02:56.8]} 3. f3 {[%clk 0:02:59.5]} 3... d5 {[%clk 0:02:54.3]}
4. cxd5 {[%clk 0:02:59.3]} 4... Nxd5 {[%clk 0:02:54.6]} 5. e4 {[%clk 0:02:59.5]}
5... Nb6 {[%clk 0:02:55.2]} 6. Nc3 {[%clk 0:02:59.5]} 6... Bg7 {[%clk
0:02:55.8]} 7. Be3 {[%clk 0:02:59.2]} 7... O-O {[%clk 0:02:55.5]} 8. Qd2 {[%clk
0:02:59.7]} 8... Nc6 {[%clk 0:02:55.6]} 9. O-O-O {[%clk 0:02:57.4]} 9... Qd6
{[%clk 0:02:56]} 10. h4 {[%clk 0:02:41.9]} 10... Rd8 {[%clk 0:02:51.6]} 11. Nge2
{[%clk 0:02:41.3]} 11... Nc4 {[%clk 0:02:50.2]} 12. Qd3 {[%clk 0:02:36.8]} 12...
N6e5 {[%clk 0:02:38.8]} 0-1

[Event "*** Titled Tuesday Blitz"]
[Site "Chess.com"]
[Date "2020.04.28"]
[Round "3"]
[White "APotatoInthekitchen"]
[Black "Gvetadze"]
[Result "0-1"]
[WhiteElo "2154"]
[BlackElo "2353"]
[TimeControl "180+1"]
[EndTime "10:23:53 PDT"]
[Termination "Gvetadze won by resignation"]

1. e4 {[%clk 0:03:00.9]} 1... Nf6 {[%clk 0:03:00.9]} 2. e5 {[%clk 0:02:56]} 2...
Nd5 {[%clk 0:03:01.2]} 3. Nf3 {[%clk 0:02:53.1]} 3... d6 {[%clk 0:03:01.2]} 4.
d4 {[%clk 0:02:51.5]} 4... dxe5 {[%clk 0:03:00.7]} 5. Nxe5 {[%clk 0:02:51.2]}
5... c6 {[%clk 0:03:01.1]} 6. c3 {[%clk 0:02:47.8]} 6... Nd7 {[%clk 0:03:00.7]}
7. Bd3 {[%clk 0:02:35.1]} 7... Nxe5 {[%clk 0:02:59.9]} 8. dxe5 {[%clk
0:02:35.2]} 8... g6 {[%clk 0:02:56.9]} 9. O-O {[%clk 0:02:34.7]} 9... Bg7 {[%clk
0:02:56.6]} 10. Re1 {[%clk 0:02:28.9]} 10... Be6 {[%clk 0:02:51.6]} 11. Nd2
{[%clk 0:02:23.9]} 11... Nxc3 {[%clk 0:02:47.6]} 12. Qc2 {[%clk 0:02:17.1]}
12... Nd5 {[%clk 0:02:45]} 13. Nf3 {[%clk 0:02:16.3]} 13... Nb4 {[%clk
0:02:43.4]} 14. Qb3 {[%clk 0:02:02.4]} 0-1

[Event "*** Titled Tuesday Blitz"]
[Site "Chess.com"]
[Date "2020.04.28"]
[Round "3"]
[White "kuli4ik"]
[Black "827883"]
[Result "1-0"]
[WhiteElo "2695"]
[BlackElo "2177"]
[TimeControl "180+1"]
[EndTime "10:24:01 PDT"]
[Termination "kuli4ik won by resignation"]

1. Nf3 {[%clk 0:03:00.4]} 1... d5 {[%clk 0:02:59.8]} 2. g3 {[%clk 0:03:00.3]}
2... Nf6 {[%clk 0:03:00.2]} 3. Bg2 {[%clk 0:03:00.7]} 3... g6 {[%clk 0:02:57.1]}
4. b3 {[%clk 0:02:59.2]} 4... Bg7 {[%clk 0:02:57.1]} 5. Bb2 {[%clk 0:03:00.1]}
5... O-O {[%clk 0:02:57.3]} 6. c4 {[%clk 0:03:00.7]} 6... e6 {[%clk 0:02:53.5]}
7. O-O {[%clk 0:02:54.7]} 7... Nc6 {[%clk 0:02:52.1]} 8. d3 {[%clk 0:02:54.3]}
8... d4 {[%clk 0:02:39.5]} 9. a3 {[%clk 0:02:54]} 9... a5 {[%clk 0:02:39.3]} 10.
b4 {[%clk 0:02:53.9]} 10... axb4 {[%clk 0:02:37.7]} 11. axb4 {[%clk 0:02:54.8]}
11... Rxa1 {[%clk 0:02:38.3]} 12. Bxa1 {[%clk 0:02:55.5]} 12... Nxb4 {[%clk
0:02:38.8]} 13. Bxd4 {[%clk 0:02:51.7]} 13... Nc6 {[%clk 0:02:38.6]} 14. Bb2
{[%clk 0:02:51.7]} 14... Bd7 {[%clk 0:02:34.4]} 15. Nbd2 {[%clk 0:02:51.1]}
15... Re8 {[%clk 0:02:32.2]} 16. Qa1 {[%clk 0:02:50.5]} 16... Qa8 {[%clk
0:02:27.7]} 17. Bxf6 {[%clk 0:02:48.2]} 1-0

[Event "*** Titled Tuesday Blitz"]
[Site "Chess.com"]
[Date "2020.04.28"]
[Round "3"]
[White "vizumatv4hoda"]
[Black "RodinMihail"]
[Result "1-0"]
[WhiteElo "2760"]
[BlackElo "2534"]
[TimeControl "180+1"]
[EndTime "10:24:21 PDT"]
[Termination "vizumatv4hoda won by resignation"]

1. e4 {[%clk 0:03:00.9]} 1... e5 {[%clk 0:03:00]} 2. d4 {[%clk 0:03:00.5]} 2...
exd4 {[%clk 0:02:59.4]} 3. Nf3 {[%clk 0:03:01.1]} 3... Nc6 {[%clk 0:02:59.3]} 4.
c3 {[%clk 0:03:01.3]} 4... d5 {[%clk 0:02:58.7]} 5. Bd3 {[%clk 0:03:01.4]} 5...
Bg4 {[%clk 0:02:48.5]} 6. cxd4 {[%clk 0:02:48.1]} 6... dxe4 {[%clk 0:02:29.1]}
7. Bxe4 {[%clk 0:02:45.9]} 7... Nf6 {[%clk 0:02:28.2]} 8. Bxc6+ {[%clk
0:02:45.4]} 8... bxc6 {[%clk 0:02:29.1]} 9. O-O {[%clk 0:02:44.9]} 9... Be7
{[%clk 0:02:27.8]} 10. h3 {[%clk 0:02:43.9]} 10... Bh5 {[%clk 0:02:26.3]} 11.
Nc3 {[%clk 0:02:43.2]} 11... O-O {[%clk 0:02:25.8]} 12. g4 {[%clk 0:02:43.8]}
12... Bg6 {[%clk 0:02:25.4]} 13. Ne5 {[%clk 0:02:44.4]} 13... c5 {[%clk
0:02:12.6]} 14. Nc6 {[%clk 0:02:34.9]} 14... Qd7 {[%clk 0:02:08.5]} 15. Nxe7+
{[%clk 0:02:35.4]} 15... Qxe7 {[%clk 0:02:08.4]} 16. dxc5 {[%clk 0:02:36.3]}
16... Qxc5 {[%clk 0:02:08]} 17. Qf3 {[%clk 0:02:35.4]} 17... Ne4 {[%clk
0:02:03.7]} 18. Nxe4 {[%clk 0:02:34.5]} 1-0

[Event "*** Titled Tuesday Blitz"]
[Site "Chess.com"]
[Date "2020.04.28"]
[Round "3"]
[White "francyIM"]
[Black "lifeissofun"]
[Result "1-0"]
[WhiteElo "2710"]
[BlackElo "2358"]
[TimeControl "180+1"]
[EndTime "10:24:27 PDT"]
[Termination "francyIM won by resignation"]

1. d4 {[%clk 0:03:00.9]} 1... Nf6 {[%clk 0:02:59.6]} 2. c4 {[%clk 0:03:00.4]}
2... e6 {[%clk 0:03:00.1]} 3. Nc3 {[%clk 0:03:00.5]} 3... Bb4 {[%clk 0:03:00.4]}
4. g3 {[%clk 0:03:00]} 4... O-O {[%clk 0:02:59.8]} 5. Bg2 {[%clk 0:02:59.6]}
5... d5 {[%clk 0:03:00.4]} 6. Nf3 {[%clk 0:02:59.4]} 6... dxc4 {[%clk
0:03:00.2]} 7. O-O {[%clk 0:02:59.4]} 7... c5 {[%clk 0:02:58.8]} 8. dxc5 {[%clk
0:02:53.8]} 8... Bxc3 {[%clk 0:02:57.1]} 9. bxc3 {[%clk 0:02:52.3]} 9... Qa5
{[%clk 0:02:56.7]} 10. Qd4 {[%clk 0:02:45.7]} 10... Nbd7 {[%clk 0:02:53.2]} 11.
Qxc4 {[%clk 0:02:40.5]} 11... Qxc5 {[%clk 0:02:52.9]} 12. Qxc5 {[%clk
0:02:39.6]} 12... Nxc5 {[%clk 0:02:53.1]} 13. Ba3 {[%clk 0:02:38.9]} 13... b6
{[%clk 0:02:48.2]} 14. Ne5 {[%clk 0:02:37.3]} 14... Rb8 {[%clk 0:02:47.3]} 15.
Rab1 {[%clk 0:02:30.7]} 15... Ba6 {[%clk 0:02:32.8]} 16. Nc6 {[%clk 0:02:29.7]}
16... Rbe8 {[%clk 0:02:24.7]} 17. Rfe1 {[%clk 0:02:25.7]} 17... Bb7 {[%clk
0:02:19.9]} 18. Bxc5 {[%clk 0:02:24.1]} 18... Bxc6 {[%clk 0:02:20.1]} 19. Bxc6
{[%clk 0:02:20.4]} 19... Rc8 {[%clk 0:02:16.5]} 20. Bxf8 {[%clk 0:02:18.3]}
20... Kxf8 {[%clk 0:02:16.6]} 21. Bf3 {[%clk 0:02:16.9]} 1-0

[Event "*** Titled Tuesday Blitz"]
[Site "Chess.com"]
[Date "2020.04.28"]
[Round "3"]
[White "Blitzstream"]
[Black "ljuks68"]
[Result "1-0"]
[WhiteElo "2709"]
[BlackElo "2356"]
[TimeControl "180+1"]
[EndTime "10:24:44 PDT"]
[Termination "Blitzstream won by resignation"]

1. d4 {[%clk 0:03:00.9]} 1... d5 {[%clk 0:02:59.5]} 2. Bf4 {[%clk 0:03:00.8]}
2... Nf6 {[%clk 0:02:59.1]} 3. e3 {[%clk 0:03:01]} 3... c5 {[%clk 0:02:59.1]} 4.
dxc5 {[%clk 0:02:59.9]} 4... Nc6 {[%clk 0:02:57.7]} 5. Bb5 {[%clk 0:02:59.7]}
5... Qa5+ {[%clk 0:02:51.6]} 6. Nc3 {[%clk 0:02:58.5]} 6... Ne4 {[%clk
0:02:51.6]} 7. Ne2 {[%clk 0:02:45.3]} 7... e5 {[%clk 0:02:45.6]} 8. Bxe5 {[%clk
0:02:34.7]} 8... Nxc3 {[%clk 0:02:04.6]} 9. Nxc3 {[%clk 0:02:31.8]} 9... Be6
{[%clk 0:01:42.3]} 10. a3 {[%clk 0:02:25.6]} 10... O-O-O {[%clk 0:01:39.6]} 11.
b4 {[%clk 0:02:18.9]} 1-0